Workbook

Sheet Sheet1
A1: Bill of Quantities
A2: Lot 2- A Garden in Dumbutu (LRR) and Boraba (CRR-S)
A3: Item | B3: Description | C3: Unit | D3: Quantity | E3: Unit Rate GMD | F3: Amount GMD
A4: 1 | B4: General items
A5: 1.1 | B5: Mobilization of equipment, personel and construction materials including drilling rig, pumping test equipment, well installation and errection facilities (pumps, generators, pipes troughs, building materials …etc). The item is inclusive of site clearing and levelling. | C5: LS | D5: 1
A6: 1.2 | B6: Demobilization of equipment and personnel from site including cleaning the site from debris and reinstatement to it's original condition | C6: LS | D6: 1
B7: Total Bill No 1 - General Items
A9: 2 | B9: Borehole Drilling and Installation
A10: 2.1 | B10: Borehole Drilling
A11: 2.1.1 | B11: Drilling of standard boreholes of 6" diameter from 0 meter to the water depth estimated to be 60m (depths vary per site). | C11: ml | D11: 60
A12: 2.1.2 | B12: Supply and install 6" diameter standard UPVC casing covering 70% of the drilled depth. | C12: ml | D12: 45
A13: 2.1.3 | B13: Supply and install 6" diameter standard UPVC screen covering 30% of the drilled depth. | C13: ml | D13: 15
A14: 2.1.4 | B14: Supply and insert filter gravel packing( 2mm to 4mm size) 1000mm above the screen . | C14: LS | D14: 1
A15: 2.1.5 | B15: Provide a 0.5m x 0.5 m concrete around well to 0.3m depth from ground level | C15: m3 | D15: 0.75
A16: 2.1.6 | B16: Borehole development work | C16: LS | D16: 1
A17: 2.1.7 | B17: Recovery and test pumping constant discharge including installation and removal of test pumping equipment (draw down and recovery measurement) | C17: LS | D17: 1
A18: 2.1.8 | B18: Collection and testing of water sample for chemical and bacteriological analysis | C18: LS | D18: 1
A19: 2.1.9 | B19: End cap and well protection | C19: LS | D19: 1
B21: Total cost for a unit Borehole
B23: Total Bill No 2- Borehole drilling | C23: No | D23: 2
A25: 3 | B25: Supply and installation of Solar water Pumping System
A27: 3.1 | B27: The solar modules should be in weather proof glass enclosure rated between 300 - 350Wp inclined at 15% to the horizontal incorporating water proof connection boxes and connecting cable glands with anti -theft fixings and the whole assembly able to withstand wind speed of 150km/hr and with easy access for maintenanance
A28: 3.1.2 | B28: The Solar module must be able to provide enough power to pump a minimum flow rate of 8m3/h at a 40m head. Cost to include solar panels, support structures, cables and all other required accessories | C28: LS | D28: 2
A29: 3.2 | B29: Install submersible centrifugal or helical rotor pump to fit 6" cased borehole and constructed in stainless steel with non return valve pressure of 2 bars fitted with easily removable riser pipe with portable water grade internal surface with HDPE fittings at pump outlet .The pump should be able to provide 8m3/h at 40m head | C29: No | D29: 2
B31: Total Bill No 3 - Solar water pumping system
A33: 4 | B33: Supply of water storage tanks
A34: 4.1 | B34: Plastic cylindrical tank with potable water grade inner liner, with inlet, outlet, overflow and wash-out connections .The whole tank to be set on 5m high elevated hot-dipped galvanised steel tower and secured to reinforced concrete foundations . The cost to include the tank , foundation and the required pipe works.
A35: 4.2 | B35: Cost for the supply and installation of a three layered plastic tank of 5m3 capacity | C35: No | D35: 3
A36: 4.3 | B36: Install a galvanised steel tower 5m high with one meter high enclosure to protect the tanks (each of 5m3 capacity) . The platform should be acesible with a ladder and supported by bracings and anchored to the ground in a 80cm depth of concrete foundation. | C36: No | D36: 2
A37: 4.4 | B37: Construct a 1.5m x 1.5m x 0.7m deep ground concrete reservoirs. The reservoirs must be reinforced with 8mm rod with concrete thickness of 10cm.The interior must be waterproofed to prevent leakages | C37: No | D37: 28
B39: Total Bill No 4 - Water storage tanks
A41: 5 | B41: Water Distribution system
A42: 5.1 | B42: Excavation and backfilling of excavations for all types of soil for pipes up to Ø 63 including supply and installation of a compacted sand bed (15 cm) including evacuation of water and all other conditions. The price should include all the necessary fittings from the tank outlet to the end of the distribution system
A43: 5.2 | B43: Supply and Install PVC pressure pipes (PN 6) Ø 63 | C43: ml | D43: =112+110 -> 222
A44: 5.3 | B44: Supply and Install PVC pressure pipes (PN 6) Ø 50 | C44: ml | D44: =675+575 -> 1250
A45: 5.4 | B45: Installation of galvanised steel tap stands with two taps 3/4'' to supply water to the ground concrete reservoirs | C45: No | D45: =16+12 -> 28
A46: 5.5 | B46: Supply of 3/4' hosepipes (50 m roll) | C46: No | D46: 10
B47: Total Bill No 5 - Water distribution system
A49: 6 | B49: Chain-link Fencing
A50: 6.1 | B50: The chain-link to be supplied and installed shall be composed of 2-metre galvanized or PVC/LLDPE-coated galvanised steel (BS 1722-1:2006 or equivalent) with 50x50 mm mesh and minimum wire diameter of 3.8mm. The fencing is to be installed on a concrete plinth and supported by posts of galvanised steel (or other corrosion-resistant material) encased in the plinth. A maximum spacing of 3000mm is to be allowed between posts. Posts must be braced on both sides at 15m intervals together with all corner posts.
A51: 6.2 | B51: Excavate 300mm X 400mm deep for the post foundation | C51: m3 | D51: =20+19 -> 39
A52: 6.3 | B52: Excavate trenches for strip foundation to support plinth depth not exceeding 200mm. | C52: m3 | D52: =15+14 -> 29
A55: 6.4 | B55: Concrete for the supporting post foundation | C55: m3 | D55: =13+13 -> 26
A56: 6.5 | B56: Concrete for the plinth supporting the chain link wire | C56: m3 | D56: =20+19 -> 39
A57: 6.6 | B57: Supply and install on plinth, complete fencing comprising chain- link fabric, supporting and corner posts, tensioning wire, tensioners and all other accessories as required | C57: m | D57: =488+470 -> 958
A60: 6.7 | B60: Supply & install supporting posts, angle supports in galvanised steel to receive chain link. | C60: No | D60: =163+157 -> 320
B63: Total Bill No 6 - Chain-link fencing
A65: 7 | B65: Garden Toilets
A66: 7.1 | B66: Site clearance
B67: Clear all shrubs weeds, root bulbs and debris from site | C67: m2 | D67: =2.5*2.6 -> 6.5
A68: 7.2 | B68: Excavation
B69: 2600 x 2500 x 2500mm depth | C69: m3 | D69: =2.6*2.5*2.5 -> 16.25
B70: Surface treatments with anti- termite | C70: m2 | D70: =2.6*2.5 -> 6.5
A71: 7.3 | B71: Re-inforcement
B72: 6mm stirup to columns | C72: ml | D72: =(6/0.2)*0.6*6 -> 108
B73: 10mm, columns | C73: ml | D73: =(5.5*4)*6 -> 132
B74: 10mm ground beam | C74: ml | D74: =13*4 -> 52
B75: 6mm stirup to ground beam | C75: ml | D75: =(52/0.2)*0.8 -> 208
B76: Mesh fabric, 10mm, 150mm both ways to floor slab | C76: ml | D76: 90
A77: 7.4 | B77: Formwork
B78: Soffit of slab, left in | C78: m2 | D78: =2.6*2.5 -> 6.5
B79: to edges of slab | C79: m2 | D79: =13*0.15 -> 1.95
B80: Ground beam | C80: m2 | D80: =13*0.15*2 -> 3.9
B81: to columns | C81: m2 | D81: =6*0.15*2 -> 1.8
A82: 7.5 | B82: Concrete
B83: Plain in-situ concrete: 20n/mm2; 20mm laterite aggregate size
B84: Foundations base; 150mm thick | C84: m3 | D84: =2.6*2.5*0.15 -> 0.975
B85: Columns | C85: m3 | D85: =(0.15*0.15*5.5)*6 -> 0.7425
B86: Ground beam | C86: m3 | D86: =(13*0.15*0.2) -> 0.39
A87: 7.6 | B87: Masonry
B88: Cement sand blocks; hollow; 2.5N/mm2; cement wall of 150mm thick | C88: m2 | D88: =15.4*5.5 -> 84.7
A89: 7.7 | B89: Wall finishes
B90: Render: Cement - sand (1:4 mix)to new wall 12mm thick to walls | C90: m2 | D90: =D88*2 -> 169.4
A91: 7.8 | B91: Roof
B92: 50 x 75mm red wood trussess at 800mm spacing anchored on the walls | C92: m | D92: 12
B93: 50 X50 mm red wood timber purlins at 600mm spacing | C93: m | D93: 12
B94: Aluzinc profile (0.5mm gauge) roofing sheets properly bolted as recommended | C94: m2 | D94: =(2.5*2.6)*1.1 -> 7.15
B95: Barge boards, 100 x 100mm | C95: m | D95: 11
A96: 7.9 | B96: Doors
B97: Fabricated steel door, comprising 25 x 25 x 1.5mm SHS frame with 10 x 10mm | C97: No | D97: 2
B98: SHS jamb, 1.5mm steel plate welded to 25 x 25mm midframes Barrel bolt lock
B99: Prime with red oxide before fixing and paint 2 coats after installation
A100: 7.1 | B100: Window
B101: 600 x 600 mm openings covered with galvanised mesh | C101: No | D101: 2
A102: 7.11 | B102: Painting and decoration
B103: Prepare, prime and paint 2 finish coats to rendered walls | C103: m2 | D103: =(15.4*3)*2 -> 92.4
A104: 7.12 | B104: Floor finishes
B105: Basaltic screed laid on concrete, 40mm (1: 1 1/2 : 3 mix) | C105: m2 | D105: =2.6*2.5 -> 6.5
A106: 7.13 | B106: Fitting and fixtures
B107: 110 diameter vent pipe fix to wall with proprietary strap (2 Nr) | C107: m | D107: 4
B109: Total cost for a unit Garden Toilet
B111: Total Bill No 7 - Garden Toilets | C111: No | D111: 2
A113: 8 | B113: Farm rest area & Storage
A115: 8.1 | B115: Site clearance
B116: Clear all shrubs weeds, root bulbs and debris from site | C116: m2 | D116: =7*10 -> 70
A117: 8.2 | B117: Excavation
B118: Strip foundation of 600 x 900 x 6000mm depth | C118: m3 | D118: =36*0.6*0.6 -> 12.96
B119: Surface treatments with anti- termite | C119: m2 | D119: =9*6 -> 54
B120: Harcore Compaction | C120: m3 | D120: =9*6*0.3 -> 16.2
A121: 8.3 | B121: Re-inforcement
B122: 6mm stirup to columns | C122: ml | D122: =(4/0.2)*0.6*12 -> 144
B123: 12 mm, columns | C123: ml | D123: =4*4*12 -> 192
B124: 10mm ground beam | C124: ml | D124: =36*4 -> 144
B125: 6mm ground beam | C125: ml | D125: =(36/0.2)*0.9 -> 162
B126: 10mm to lintel | C126: ml | D126: =18*4 -> 72
B127: 10mm to ring beam | C127: ml | D127: =D124 -> 144
B128: Mesh fabric, 6mm, 150mm both ways to floor slab | C128: ml | D128: 756
A129: 8.4 | B129: Formwork
B130: to ground beams | C130: m2 | D130: =(36*0.3)*2 -> 21.6
B131: to colums | C131: m2 | D131: =0.6*4*12 -> 28.8
B132: to ring beam | C132: m2 | D132: =18*0.2*2 -> 7.2
B133: to lintel | C133: m2 | D133: =18*0.2*2 -> 7.2
A134: 8.5 | B134: Concrete
B135: Plain in-situ concrete: 20n/mm2; 20mm laterite aggregate size
B136: Strip Foundations | C136: m3 | D136: =36*0.2*0.2 -> 1.44
B137: Columns | C137: m3 | D137: =4*0.15*0.15*12 -> 1.08
B138: Ground beam | C138: m3 | D138: =36*0.3*0.15 -> 1.62
B139: lintel | C139: m3 | D139: =18*0.2*0.15 -> 0.54
B140: Ring beam | C140: m3 | D140: =D138 -> 1.62
A141: 8.6 | B141: Masonry
B142: Cement sand blocks; hollow; 2.5N/mm2; cement wall of 150mm thick | C142: m2 | D142: =(18*4)+(18*1.5)+(2*1.5*1.2)*2 -> 106.2
A143: 8.7 | B143: Roof
B144: 50 x 75mm red wood trussess at 1500mm spacing anchored on the walls | C144: No | D144: 3
B145: 50 X50 mm red wood timber purlins at 600mm spacing | C145: m | D145: 100
B146: Aluzinc profile (0.5mm gauge) roofing sheets properly bolted | C146: m2 | D146: =32*2 -> 64
B147: Barge boards, 100 x 100mm | C147: m | D147: 33
A148: 8.8 | B148: Doors
B149: Fabricated steel door, comprising 25 x 25 x 1.5mm SHS frame | C149: No | D149: 1
B150: with 10 x 10mm SHS jamb, 1.5mm steel plate welded to 25 x25mm midframes
B151: Barrel bolt lock and eyes for padlock lock.
B152: Prime with red oxide before fixing and paint 2 coats after installation
A153: 8.9 | B153: Windows
B154: 600 x 600 mm openings covered with galvanised mesh | C154: No | D154: 1
A155: 8.1 | B155: Wall Finishes
B156: Render: Cement-sand (1:4 mix) to new wall | C156: m2 | D156: =(18*3)*2 +(15*1.2)*2 -> 144
A157: 8.11 | B157: Painting and decorations
B158: Prepare, prime and paint 2 finish coats to rendered walls | C158: m2 | D158: =D156 -> 144
A159: 8.12 | B159: Floor Finishes
B160: Basaltic screed laid on concrete, 40mm (1: 1 1/2 : 3 mix) | C160: m2 | D160: =9*6 -> 54
B162: Total cost for a Unit Farm rest house and Storage
B164: Bill No 8 - Total for Farm rest house and storage | C164: No | D164: 2
B166: Total cost for the entire works
